bitfinex-derivatives/quotes_ETHF0:USTF0_20251119
["timestamp","ask_amount","ask_price","bid_price","bid_amount"]
[1763511059258,3.96816334,3108.1,3108.0,0.3781]
[1763511059559,4.48966334,3108.1,3108.0,0.3781]
[1763511060357,0.62726,3107.7,3107.6,3.2078]
[1763511061658,0.62734,3107.2,3107.1,3.2078]
[1763511061857,0.62734,3107.2,3107.1,3.4369]
[1763511062160,0.52164,3107.2,3107.1,3.4369]
[1763511064259,0.52163,3107.3,3107.2,0.2291]
[1763511064461,0.52161,3107.4,3107.3,0.2291]
[1763511066163,0.52158,3107.6,3107.5,0.3781]
[1763511066556,0.1057,3107.3,3107.0,0.1419]
[1763511066862,0.1057,3106.6,3106.5,0.1419]
[1763511067162,3.83524,3106.6,3106.5,0.1419]
[1763511067960,3.83897349,3106.6,3106.5,0.14532411]
[1763511069062,3.73327349,3106.6,3106.5,0.37442411]
[1763511069866,3.83897349,3106.6,3106.5,0.00342411]
[1763511070268,3.83897349,3106.6,3106.5,0.38152411]
[1763511070570,3.73327349,3106.6,3106.5,0.38152411]
[1763511071572,0.00373349,3106.6,3106.5,4.11108411]
[1763511073770,0.52547349,3106.6,3106.5,4.11108411]
[1763511073969,0.52547349,3106.6,3106.5,3.58932411]
[1763511074164,0.52547349,3106.6,3106.5,4.11108411]
[1763511074873,0.52547349,3106.6,3106.5,3.58932411]
[1763511078076,0.63117349,3106.6,3106.5,0.15242411]
[1763511078275,0.63117349,3106.6,3106.5,0.00342411]
[1763511081686,0.63117349,3106.6,3105.7,3.2078]
[1763511081687,0.62688,3105.8,3105.7,3.2078]
[1763511082186,0.52188,3105.8,3105.7,3.4559]
[1763511082784,0.52188,3105.8,3105.7,3.45909882]
[1763511083185,3.83468,3105.8,3105.7,0.00319882]
[1763511086282,3.83468,3105.8,3105.7,0.25129882]
[1763511086481,3.83468,3105.8,3105.7,0.00319882]
[1763511087786,0.62489,3105.1,3105.0,0.3912]
[1763511087991,0.52199,3105.1,3105.0,0.91321]
[1763511088686,0.52199,3105.1,3105.0,0.91630219]
[1763511089191,0.52199,3105.1,3105.0,0.39429219]
[1763511089386,3.72978,3105.2,3105.1,0.2422]
[1763511090391,3.83268,3105.2,3105.1,0.2422]
[1763511090593,0.52198,3105.2,3105.1,0.2422]
[1763511093892,0.52198,3105.2,3105.1,0.76419]
[1763511094197,0.52191,3105.7,3105.6,0.7641]
[1763511094398,3.72964,3106.0,3105.9,0.2422]
[1763511095795,0.62478,3105.8,3105.6,0.52191]
[1763511095996,0.1029,3105.8,3105.7,0.76409]
[1763511096193,0.52186,3105.9,3105.8,0.2422]
[1763511097100,0.52186,3105.9,3105.8,0.76408]
[1763511097495,0.62476,3105.9,3105.8,0.2422]
[1763511098301,0.52186,3105.9,3105.8,0.2422]
[1763511100802,0.52186,3105.9,3105.8,0.76408]
[1763511101000,3.72965,3106.0,3105.9,0.2422]
[1763511101499,3.2078,3106.4,3106.3,0.76399]
[1763511101699,3.83247,3106.4,3106.3,0.2422]
[1763511101908,0.6247,3106.3,3106.2,0.76401]
[1763511102096,0.5218,3106.3,3106.2,0.76401]
[1763511102296,3.2078,3106.4,3106.3,0.76399]
[1763511102998,3.72957,3106.4,3106.3,0.76399]
[1763511103399,3.72957,3106.4,3106.3,0.2422]
[1763511104402,0.52177,3106.4,3106.3,0.2422]
[1763511104802,0.52177,3106.4,3106.3,0.76399]
[1763511105594,0.52177,3106.4,3106.3,0.2422]
[1763511105795,0.52177,3106.4,3106.3,0.76399]
[1763511106195,0.52176,3106.5,3106.3,0.2422]
[1763511106401,3.21262587,3106.9,3106.8,0.76391]
[1763511106402,0.00482587,3106.9,3106.8,0.76391]
[1763511106600,3.72934,3107.8,3107.7,0.2422]
[1763511106800,0.52154,3107.8,3107.7,0.2422]
[1763511107110,0.52154,3107.8,3107.5,0.1487]
[1763511107111,0.52157,3107.6,3107.5,0.3909]
[1763511107408,0.62687553,3107.6,3107.5,0.39495705]
[1763511107596,0.62687553,3107.6,3107.5,0.91654705]
[1763511107793,0.62687553,3107.6,3107.5,0.39495705]
[1763511107994,3.83467553,3107.6,3107.5,0.00405705]
[1763511108402,3.83467553,3107.6,3107.5,0.15275705]
[1763511109205,3.83467553,3107.6,3107.5,0.00405705]
[1763511109406,3.83467553,3107.6,3107.2,0.00482587]
[1763511109407,0.62452,3107.3,3107.2,0.00482587]
[1763511109994,0.62452,3107.3,3107.2,0.24702587]
[1763511110511,0.62052,3107.3,3107.2,0.25107207]
[1763511112209,0.52162,3107.3,3107.2,0.25107207]
[1763511112406,3.30910553,3107.6,3107.5,0.3909]
[1763511112610,0.00240553,3107.6,3107.5,0.3909]
[1763511113009,0.52397553,3107.6,3107.5,0.3909]
[1763511113219,0.62287553,3107.6,3107.5,0.3909]
[1763511114106,0.52397553,3107.6,3107.5,0.3909]
[1763511114809,0.62287553,3107.6,3107.5,0.3909]
[1763511115400,3.2078,3108.0,3107.5,0.3909]
[1763511115401,3.2078,3108.0,3107.9,0.2422]
[1763511115616,0.52141,3108.6,3108.5,0.1487]
[1763511115817,3.2078,3108.9,3108.0,0.1487]
[1763511116017,0.52148,3108.2,3108.0,0.1487]
[1763511116210,0.52153,3107.9,3107.6,0.52157]
[1763511116411,0.0989,3107.6,3107.5,0.1487]
[1763511116711,0.00270369,3107.9,3107.8,0.2422]
[1763511117211,0.22860369,3107.9,3107.3,3.2078]
[1763511117521,0.52156,3107.7,3107.5,0.52158]
[1763511117713,0.00270369,3107.9,3107.8,0.75114]
[1763511117913,1.1443069,3109.4,3107.8,0.75114]
[1763511117914,0.52144,3108.4,3108.3,0.2296]
[1763511118110,0.2398,3108.3,3108.2,3.2078]
[1763511118416,0.76126,3108.3,3108.2,3.2078]
[1763511118817,0.76460133,3108.3,3108.2,3.2078]
[1763511119212,0.52147,3108.2,3108.1,0.75109]
[1763511119612,0.52147,3108.2,3108.1,0.2296]
[1763511121018,0.52147,3108.2,3107.2,0.00887207]
[1763511121019,0.52157,3107.6,3107.5,0.2296]
[1763511122405,0.76141,3107.4,3107.3,3.2078]
[1763511124118,0.76141,3107.4,3107.3,3.4374]
[1763511126422,0.76141,3107.4,3107.3,3.2078]
[1763511127519,0.76141,3107.4,3107.3,3.4374]
[1763511130718,0.76141,3107.4,3107.3,3.2078]
[1763511130917,0.76141,3107.4,3107.3,3.4374]
[1763511131816,0.76142,3107.3,3107.2,0.00887207]
[1763511132624,0.76151,3106.8,3106.7,0.2296]
[1763511133515,0.76151,3106.8,3106.7,0.2332494]
[1763511133720,0.76151,3106.8,3106.7,0.0036494]
[1763511134820,0.52166,3107.1,3107.0,0.2296]
[1763511135222,0.52166,3107.1,3107.0,3.95907]
[1763511135427,0.67019,3107.5,3107.4,0.75121]
[1763511135617,0.67019,3107.5,3107.4,0.2296]
[1763511135814,0.2398,3106.8,3106.7,0.0036494]
[1763511136018,0.67028,3107.0,3106.7,0.2332494]
[1763511136214,0.52169,3106.9,3106.8,0.2296]
[1763511136424,0.52169,3106.9,3106.8,0.75131]
[1763511136722,0.76149,3106.9,3106.8,0.75131]
[1763511137929,0.52164,3107.2,3107.1,0.2296]
[1763511138526,0.76144,3107.2,3107.1,0.2296]
[1763511138726,0.67027,3107.0,3106.7,0.0036494]
[1763511139026,0.2398,3106.9,3106.8,0.75129]
[1763511139225,0.52169,3106.9,3106.8,0.52169]
[1763511139427,0.1486,3107.0,3106.8,0.2296]
[1763511139631,0.91008,3107.0,3106.9,0.75129]
[1763511141127,0.91007,3107.0,3106.9,0.75129]
[1763511141523,0.52162,3107.4,3107.3,0.52162]
[1763511141731,0.52161,3107.4,3107.3,0.75852]
[1763511142530,0.90641,3107.5,3107.4,0.75851]
[1763511144320,0.90641,3107.5,3107.4,3.96631]
[1763511144527,0.52158,3107.6,3107.5,0.75849]
[1763511144828,0.52159,3107.5,3107.4,3.2078]
[1763511145123,0.89999,3107.5,3107.4,3.2078]
[1763511145315,0.89999,3107.5,3107.4,3.4447]
[1763511146026,0.89999,3107.5,3107.4,3.2078]
[1763511148640,0.3742,3107.0,3106.9,0.52168]
[1763511149526,0.3742,3107.0,3106.9,0.74908]
[1763511149730,0.89587,3107.0,3106.9,0.74908]
[1763511151035,0.89587,3107.0,3106.9,0.74909]
[1763511151236,0.89587,3107.0,3106.9,0.2274]
[1763511151738,0.75691,3106.8,3106.7,0.7527694]
[1763511152332,0.52171,3106.8,3106.7,0.7527694]
[1763511157136,0.75691,3106.8,3106.7,0.7527694]
[1763511157532,0.75691,3106.8,3106.7,0.0036494]
[1763511157934,1.51279959,3106.8,3106.7,0.0036494]
[1763511158426,0.75703,3106.1,3106.0,3.2078]
[1763511158729,0.52189,3105.7,3105.6,3.4352]
[1763511158938,0.75709,3105.7,3105.6,3.2078]
[1763511159330,0.75709,3105.7,3105.6,3.95711]
[1763511159524,0.76018799,3105.7,3105.6,3.96112816]
[1763511159926,0.76018799,3105.7,3105.6,3.43921816]
[1763511160130,0.76018799,3105.7,3105.6,3.96112816]
[1763511160331,0.76018799,3105.7,3105.6,3.43921816]
[1763511160932,0.00309799,3105.7,3105.6,3.96112816]
[1763511166841,0.76018799,3105.7,3105.6,3.96112816]
[1763511167040,0.76018799,3105.7,3105.6,3.73372816]
[1763511167247,0.76018799,3105.7,3105.6,3.21181816]
[1763511167634,0.52498799,3105.7,3105.6,3.96112816]
[1763511168334,0.76018799,3105.7,3105.6,3.96112816]
[1763511168531,0.76018799,3105.7,3105.6,3.43921816]
[1763511168737,0.76018799,3105.7,3105.6,0.00401816]
[1763511168937,0.76018799,3105.7,3105.2,3.2078]
[1763511168938,0.75716,3105.3,3105.2,3.2078]
[1763511169138,0.75716,3105.3,3104.7,3.2078]
[1763511169338,0.75725,3104.8,3104.7,3.4352]
[1763511169636,0.75725,3104.8,3104.7,3.2078]
[1763511169945,0.75725,3104.8,3104.7,3.96011355]
[1763511170144,0.75725,3104.8,3104.7,3.43805355]
[1763511170347,0.2352,3104.8,3104.7,3.96011355]
[1763511170545,0.66101,3105.0,3104.9,0.2274]
[1763511170946,0.89621,3105.0,3104.9,0.2274]
[1763511171840,0.139,3105.5,3105.4,0.2274]
[1763511172041,0.89613,3105.5,3105.4,0.2274]
[1763511172647,0.89613,3105.5,3105.4,0.74934]
[1763511173847,0.66093,3105.5,3105.4,0.74934]
[1763511174049,0.75715,3105.4,3105.3,0.52196]
[1763511174548,0.75715,3105.4,3105.3,0.74936]
[1763511175053,0.2352,3105.4,3105.3,0.74936]
[1763511175244,0.66093,3105.5,3105.4,0.74934]
[1763511175848,0.89613,3105.5,3105.4,0.74934]
[1763511180747,0.2371,3105.3,3104.8,3.2078]
[1763511180951,0.75911,3105.1,3105.0,0.52201]
[1763511181248,0.139,3105.5,3104.8,3.2078]
[1763511181249,0.52198,3105.2,3105.1,0.75709]
[1763511181449,0.52196,3105.3,3105.2,0.2351]
[1763511181650,0.75906,3105.3,3105.2,3.4429]
[1763511181851,0.75906,3105.3,3105.2,3.96488]
[1763511182439,0.52196,3105.3,3105.2,3.96488]
[1763511182839,0.75906,3105.3,3105.2,3.96488]
[1763511183045,0.52204,3104.8,3104.7,0.00285355]
[1763511183343,0.75914,3104.8,3104.7,0.00285355]
[1763511185350,0.75914,3104.8,3104.7,0.76001355]
[1763511185550,0.2371,3104.8,3104.7,0.76001355]
[1763511185739,3.2078,3105.3,3105.0,0.2351]
[1763511185740,0.522,3105.1,3105.0,0.2351]
[1763511186349,0.7591,3105.1,3105.0,0.2351]
[1763511186850,0.2371,3105.3,3104.9,3.2078]
[1763511187152,0.1479,3105.0,3104.9,3.96493]
[1763511188251,0.139,3105.5,3105.1,0.52199]
[1763511188451,0.2371,3105.2,3105.1,0.75709]
[1763511188647,0.139,3105.5,3105.1,0.75709]
[1763511189042,0.139,3105.5,3105.4,0.2351]
[1763511189250,0.52197,3105.3,3104.9,3.2078]
[1763511189454,0.75907,3105.3,3105.2,0.2351]
[1763511191252,0.75908,3105.2,3105.1,0.75709]
[1763511193358,0.90701,3105.0,3104.9,3.4429]
[1763511193558,0.90701,3105.0,3104.9,3.2078]
[1763511196670,0.90701,3105.0,3104.9,3.4429]
[1763511196869,0.139,3105.5,3105.1,0.2351]
[1763511197062,0.66093,3105.5,3105.4,0.2351]
[1763511197367,0.89803,3105.5,3105.4,0.2351]
[1763511197568,0.52198,3105.2,3105.1,0.75709]
[1763511198975,0.75908,3105.2,3105.1,0.2351]
[1763511202975,0.89241,3105.0,3104.9,3.96673]
[1763511203174,4.3521069,3105.9,3105.6,0.2369]
[1763511203175,0.52498799,3105.7,3105.6,0.2369]
[1763511203377,1.50743227,3105.7,3105.6,0.2369]
[1763511204879,1.50743227,3105.7,3105.3,3.72976]
[1763511205085,0.89233,3105.5,3105.4,0.75884]
[1763511205689,0.00309799,3105.7,3105.4,0.2369]
[1763511205873,0.00309799,3105.7,3105.3,3.2078]
[1763511205874,0.00309799,3105.7,3105.6,0.75881]
[1763511206691,0.52499799,3105.7,3105.6,0.2369]
[1763511207080,0.75059799,3105.7,3105.6,0.2369]
[1763511207784,0.74751,3105.6,3105.5,0.75882]
[1763511209090,0.76264,3105.4,3105.3,3.4373]
[1763511209291,0.76264,3105.4,3105.3,3.95926]
[1763511210588,0.76264,3105.4,3105.3,3.2078]
[1763511212085,0.90361,3105.0,3104.9,3.2078]
[1763511214692,1.66134528,3105.0,3104.9,3.2078]
[1763511215693,0.76274,3104.8,3104.7,0.00285355]
[1763511218504,0.76274,3104.8,3104.7,0.23235355]
[1763511218790,0.52204,3104.8,3104.7,0.75441355]
[1763511220587,0.76274,3104.8,3104.7,0.00285355]
[1763511221193,0.76274,3104.8,3104.7,0.23235355]
[1763511221897,0.76274,3104.8,3104.7,0.00285355]
[1763511222293,1.52002821,3104.8,3104.7,0.00285355]
[1763511222498,0.90369,3104.5,3104.4,0.00482587]
[1763511222894,0.7629,3103.9,3103.8,0.75171]
[1763511223200,0.1409,3104.0,3103.3,3.2078]
[1763511223201,0.76298,3103.4,3103.3,3.2078]
[1763511223406,0.76648151,3103.4,3103.3,3.21147667]
[1763511226599,0.76308,3102.8,3102.7,3.4373]
[1763511226803,0.76308,3102.8,3102.7,3.9597]
[1763511227506,0.2407,3102.8,3102.7,3.96271562]
[1763511227702,0.66325,3103.0,3102.9,0.2295]
[1763511228302,0.90395,3103.0,3102.9,0.2295]
[1763511228497,0.90395,3103.0,3102.7,0.00301562]
[1763511228498,0.76308,3102.8,3102.7,0.00301562]
[1763511228697,0.76308,3102.8,3102.3,3.2078]
[1763511228698,0.2407,3102.8,3102.3,3.2078]
[1763511228908,0.76315,3102.4,3102.3,3.2078]
[1763511229310,0.76315,3102.4,3102.3,3.95976]
[1763511229509,0.76315,3102.4,3102.3,3.4373]
[1763511229708,0.3816,3103.0,3102.9,0.2295]
[1763511229908,0.90395,3103.0,3102.9,0.2295]
[1763511230211,0.7631,3102.7,3102.6,0.52241]
[1763511230714,0.7631,3102.7,3102.6,0.75191]
[1763511230912,0.2407,3102.7,3102.6,0.75191]
[1763511231116,0.7631,3102.7,3102.6,0.75191]
[1763511231316,0.7631,3102.7,3102.6,0.52241]
[1763511231509,0.7631,3102.7,3102.6,0.75191]
[1763511232513,0.2407,3102.4,3102.3,3.73442517]
[1763511232715,0.1409,3102.5,3102.4,0.75195]
[1763511233017,0.90403,3102.5,3102.4,0.75195]
[1763511234525,0.52241,3102.6,3102.5,0.52243]
[1763511234833,0.7631,3102.7,3102.6,0.7519]
[1763511235131,0.52242,3102.6,3102.3,3.21196517]
[1763511235337,0.1409,3102.5,3102.4,0.75195]
[1763511235833,3.3487,3103.0,3102.3,3.21196517]
[1763511235834,3.5894,3103.0,3102.9,0.2295]
[1763511236024,3.87105,3103.0,3102.9,0.75186]
[1763511236224,0.2407,3102.9,3102.6,0.5224]
[1763511236424,0.76308,3102.8,3102.7,0.75189]
[1763511236629,0.2407,3102.8,3102.7,0.75189]
[1763511236832,4.11175,3103.0,3102.9,0.75186]
[1763511237537,0.74688,3102.8,3102.7,0.76]
[1763511239233,0.74691,3102.7,3102.6,0.52241]
[1763511239537,0.373,3102.5,3102.4,0.76005]
[1763511239730,3.3487,3103.0,3102.5,0.52243]
[1763511239935,3.21130151,3103.4,3103.3,0.7599]
[1763511240229,3.2078,3104.3,3103.6,0.75985]
[1763511240437,2.587e-05,3103.7,3103.6,0.75985]
[1763511240635,3.2078,3104.3,3104.2,0.75974]
[1763511240830,3.2078,3104.9,3104.6,0.2376]
[1763511241041,3.2078,3104.9,3104.0,3.2774]
[1763511241042,3.2078,3104.9,3104.8,0.75964]
[1763511241336,3.2078,3105.8,3105.7,0.75949]
[1763511241524,0.00387647,3105.8,3105.7,0.24133541]
[1763511241723,0.52196,3105.3,3104.9,3.2078]
[1763511241939,0.373,3105.5,3105.3,0.52195]
[1763511242133,0.00387647,3105.8,3105.7,0.2376]
[1763511242343,0.00387647,3105.8,3105.7,3.4454]
[1763511242550,3.2078,3106.6,3106.1,0.2376]
[1763511242838,3.3563,3107.0,3106.1,3.2078]
[1763511243041,3.3563,3107.0,3106.6,0.52173]
[1763511243224,3.2078,3107.0,3106.9,0.2376]
[1763511243426,3.2078,3107.0,3105.4,0.26132873]
[1763511243427,0.1485,3106.5,3105.8,3.2078]
[1763511243733,0.1485,3106.5,3104.6,3.2078]
[1763511243734,0.1485,3105.5,3104.6,3.2078]
[1763511243931,0.1485,3105.5,3105.4,0.2376]
[1763511244133,0.52195,3105.4,3105.0,3.2078]
[1763511244442,0.52197,3105.3,3105.0,3.2078]
[1763511244739,0.2245,3105.1,3105.0,3.2078]
[1763511245137,0.1485,3105.0,3104.7,0.00483402]
[1763511245328,0.2245,3104.8,3104.7,0.00483402]
[1763511249032,0.2245,3104.8,3103.6,3.2078]
[1763511249033,0.1485,3104.5,3103.6,3.73004]
[1763511249234,0.67069,3104.0,3103.6,3.73004]
[1763511249433,0.2245,3103.7,3103.6,3.2078]
[1763511249940,0.22696898,3103.7,3103.6,3.21159052]
[1763511250135,0.22696898,3103.7,3103.6,0.00379052]
[1763511251038,3.43476898,3103.7,3103.6,0.00379052]
[1763511253534,0.00246898,3103.7,3103.6,0.24139052]
[1763511256442,0.22696898,3103.7,3103.6,0.00379052]
[1763511257744,0.00246898,3103.7,3103.6,0.24139052]
[1763511258649,0.22696898,3103.7,3103.6,0.00379052]
[1763511262045,0.74919898,3103.7,3103.6,0.00379052]
[1763511262645,0.74919898,3103.7,3103.6,0.52604052]
[1763511263233,0.74919898,3103.7,3103.6,0.00379052]
[1763511263533,0.74919898,3103.7,3103.6,0.52604052]
[1763511263738,0.00246898,3103.7,3103.6,0.76804052]
[1763511264352,3.3563,3104.5,3104.4,0.76411]
[1763511264551,3.5865,3104.5,3104.4,0.52211]
[1763511264745,0.90079,3104.5,3104.4,0.52211]
[1763511265450,0.90424844,3104.5,3104.4,0.52211]
[1763511265848,0.90424844,3104.5,3104.2,0.52213]
[1763511266054,0.3752,3104.0,3103.9,3.72999]
[1763511266252,0.3752,3104.0,3103.7,0.52222]
[1763511266458,0.75243,3103.7,3103.6,0.00379052]
[1763511269651,3.2078,3103.9,3103.8,0.52221]
[1763511269856,3.2078,3103.9,3103.8,0.76801]
[1763511270061,0.2353,3103.7,3103.6,0.52603052]
[1763511270259,0.75753,3103.7,3103.6,0.52603052]
[1763511270561,0.2353,3103.7,3103.6,0.52603052]
[1763511271360,0.75753,3103.7,3103.6,0.52603052]
[1763511271559,0.2353,3103.7,3103.6,0.52603052]
[1763511271763,3.2078,3103.9,3103.8,0.76801]
[1763511272363,3.4431,3103.9,3103.8,0.76801]
[1763511272560,0.2353,3103.8,3103.7,0.52222]
[1763511272969,0.75753,3103.7,3103.6,0.00379052]
[1763511274857,0.2353,3103.7,3103.6,0.52604052]
[1763511275970,0.75753,3103.7,3103.6,0.00379052]
[1763511276269,0.75753,3103.7,3103.6,0.52604052]
[1763511276568,0.75753,3103.7,3103.6,0.00379052]
[1763511276963,0.75753,3103.7,3103.3,0.00483402]
[1763511276964,0.75758,3103.4,3103.3,0.00483402]
[1763511277161,0.75758,3103.4,3103.3,0.52713402]
[1763511277970,0.75758,3103.4,3103.3,0.00709075]
[1763511278462,3.2078,3103.9,3103.3,0.00709075]
[1763511278770,3.2078,3104.3,3104.2,0.76794]
[1763511279163,0.2353,3104.3,3103.8,3.2078]
[1763511279362,0.14,3104.0,3103.9,0.768]
[1763511279666,0.75741,3104.4,3104.3,0.52212]
[1763511280068,0.52214,3104.3,3104.2,0.2458]
[1763511280267,0.52215,3104.2,3103.9,0.5222]
[1763511280472,0.52215,3104.2,3103.8,3.2078]
[1763511280473,0.2353,3104.2,3104.1,0.52216]
[1763511280668,0.7575,3103.9,3103.8,3.2078]
[1763511280968,0.7575,3103.9,3103.8,0.52221]
[1763511281769,0.7575,3103.9,3103.7,0.52223]
[1763511281974,0.75751,3103.8,3103.7,0.52223]
[1763511282269,0.52223,3103.7,3103.6,0.52224]
[1763511282471,0.52223,3103.7,3103.4,3.2078]
[1763511282472,0.52223,3103.8,3103.4,3.73008]
[1763511282772,0.52222,3103.8,3103.4,3.2078]
[1763511283274,0.2353,3103.8,3103.7,0.52222]
[1763511283778,0.2353,3103.8,3103.7,0.76802]
[1763511283970,0.89748,3104.0,3103.9,0.5222]
[1763511284275,0.89748,3104.0,3103.4,3.2078]
[1763511284276,3.72995,3104.2,3104.1,0.76796]
[1763511284877,0.8975,3104.0,3103.9,0.52219]
[1763511286077,0.3753,3104.0,3103.9,0.76799]
[1763511286282,0.14,3104.0,3103.9,0.76799]
[1763511287678,3.2078,3104.2,3104.1,0.76796]
[1763511287679,3.72994,3104.2,3104.1,0.76796]
[1763511287880,3.96524,3104.2,3104.1,0.52216]
[1763511288179,0.75749,3104.1,3104.0,0.52218]
[1763511288878,0.2353,3104.1,3104.0,0.76798]
[1763511289079,3.2078,3104.2,3104.1,0.76796]
[1763511290490,3.4431,3104.2,3104.1,0.52216]
[1763511291183,3.4431,3104.2,3104.1,0.76796]
[1763511292287,3.4431,3104.2,3103.5,3.2078]
[1763511292496,0.8975,3104.0,3103.9,0.52218]
[1763511293393,0.89748,3104.0,3103.9,0.76798]
[1763511293789,0.89748,3104.0,3103.9,0.52218]
[1763511294378,0.3753,3104.0,3103.9,0.76798]
[1763511294790,0.89748,3104.0,3103.9,0.76798]
[1763511295090,0.89748,3104.0,3103.9,0.5222]
[1763511295991,0.14,3104.0,3103.9,0.768]
[1763511296394,3.72995,3104.2,3104.1,0.76796]
[1763511296591,3.96525,3104.2,3104.1,0.76796]
[1763511297091,0.3753,3104.0,3103.9,0.76798]
[1763511297592,3.72995,3104.2,3104.1,0.75546]
[1763511297993,3.95545,3104.2,3104.1,0.75546]
[1763511299188,3.4333,3104.2,3104.1,0.75546]
[1763511300090,0.14345844,3104.5,3104.4,0.75541]
[1763511300293,0.00345844,3104.5,3104.4,0.75541]
[1763511300598,1.1443069,3105.4,3105.3,0.2333]
[1763511300599,3.2078,3105.4,3105.3,0.2333]
[1763511300786,3.2078,3105.4,3105.3,0.75526]
[1763511300989,3.2078,3105.8,3105.7,0.52189]
[1763511301193,0.74731,3106.2,3106.1,0.52181]
[1763511301494,0.75146123,3106.2,3106.1,0.00385914]
[1763511301900,0.2255,3105.1,3104.8,3.2078]
[1763511302194,0.3594,3104.0,3103.9,0.5222]
[1763511302395,0.1339,3104.5,3104.4,0.2333]
[1763511302592,3.2078,3104.9,3104.4,0.75541]
[1763511302789,3.21121696,3104.9,3104.8,0.2333]
[1763511302985,0.00341696,3104.9,3104.8,0.75534]
[1763511303299,0.52544696,3104.9,3104.8,0.52204]
[1763511303598,0.00341696,3104.9,3104.8,3.96314]
[1763511303795,0.22891696,3104.9,3104.4,3.21079618]
[1763511303989,0.00341696,3104.9,3104.4,3.21079618]
[1763511304187,0.2255,3104.6,3104.4,3.21079618]
[1763511304695,0.00341696,3104.9,3104.8,0.52204]
[1763511305000,0.74754,3104.8,3104.7,0.52206]
[1763511305398,0.00341696,3104.9,3104.8,0.52204]
[1763511305603,0.74755,3104.8,3104.7,0.52206]
[1763511305900,0.2255,3104.6,3104.5,0.52209]
[1763511306293,0.00341696,3104.9,3104.6,0.52206]
[1763511306495,0.52206,3104.7,3104.6,0.52206]
[1763511306700,0.52206,3104.7,3104.4,0.00299618]
[1763511306701,0.1339,3104.5,3104.4,0.52508618]
[1763511307003,0.3594,3104.5,3104.4,0.52508618]
[1763511307694,3.2078,3104.8,3104.7,0.75536]
[1763511307895,0.00341696,3104.9,3104.8,0.75534]
[1763511310700,0.22891696,3104.9,3104.8,0.52204]
[1763511311800,0.75094696,3104.9,3104.8,0.52204]
[1763511312295,0.88149,3104.5,3104.4,0.00299618]
[1763511312501,0.2255,3104.4,3103.8,0.5222]
[1763511312706,3.4333,3103.9,3103.8,0.5222]
[1763511313100,3.2078,3103.9,3103.8,0.7555]
[1763511313302,0.52217,3104.1,3104.0,0.2333]
[1763511313502,0.52217,3104.1,3104.0,0.23666656]
[1763511313707,0.74767,3104.1,3104.0,0.00336656]
[1763511314900,0.74767,3104.1,3104.0,0.52554656]
[1763511315102,0.74767,3104.1,3104.0,0.00336656]
[1763511315509,0.74771,3103.8,3103.7,0.00483402]
[1763511315709,3.95551,3103.8,3103.7,0.00483402]
[1763511316004,3.95551,3103.8,3103.7,0.52706402]
[1763511316406,3.95551,3103.8,3103.7,0.00483402]
[1763511316607,3.95551,3103.8,3103.7,0.00858782]
[1763511317307,3.95551,3103.8,3103.7,0.53081782]
[1763511318208,3.95551,3103.8,3103.7,0.00858782]
[1763511319806,3.95551,3103.8,3103.7,0.53081782]
[1763511321912,3.95551,3103.8,3103.7,0.00858782]
[1763511322113,3.95551,3103.8,3103.7,0.53081782]
[1763511324312,3.95551,3103.8,3103.7,0.00858782]
[1763511325811,3.95551,3103.8,3103.7,0.53081782]
[1763511327012,3.95551,3103.8,3103.7,0.00858782]
[1763511327214,3.95551,3103.8,3103.7,0.53081782]
[1763511327509,3.95551,3103.8,3103.7,0.00858782]
[1763511332908,0.52233,3103.2,3103.1,0.52232]
[1763511333214,0.76996,3103.1,3103.0,0.52235]
[1763511334113,0.76996,3103.1,3103.0,0.52562462]
[1763511334413,0.2476,3103.1,3103.0,0.52562462]
[1763511334613,0.76993,3103.1,3103.0,0.52562462]
[1763511340009,0.77471402,3103.4,3103.3,0.2237]
[1763511340218,0.76992,3103.2,3103.1,0.5223]
[1763511340515,0.76993,3103.1,3103.0,0.52561462]
[1763511340904,0.76993,3103.1,3103.0,0.00327462]
[1763511342617,1.54179457,3103.1,3103.0,0.00327462]
[1763511343221,0.76993,3103.1,3103.0,0.52562462]
[1763511343422,0.76993,3103.1,3103.0,0.00327462]
[1763511346125,0.76993,3103.1,3103.0,0.52562462]
[1763511346924,0.76993,3103.1,3103.0,0.00327462]
[1763511347923,0.76993,3103.1,3103.0,0.52562462]
[1763511348316,0.76993,3103.1,3103.0,0.00327462]
[1763511348816,0.76993,3103.1,3103.0,0.52562462]
[1763511349220,0.76993,3103.1,3103.0,0.74932462]
[1763511349423,3.97771,3103.3,3103.2,0.74601]
[1763511349618,0.52233,3103.2,3103.1,0.52233]
[1763511349824,0.76993,3103.2,3103.1,0.52233]
[1763511350622,0.76993,3103.1,3103.0,0.52561462]
[1763511351520,0.77001,3102.6,3102.5,0.5306]
[1763511351923,0.77001,3102.6,3102.5,0.00817]
[1763511352225,0.2476,3102.6,3102.5,0.7543]
[1763511352422,0.2476,3102.6,3102.5,0.75720387]
[1763511352621,0.24995463,3102.6,3102.5,0.75720387]
[1763511353025,0.00235463,3102.6,3102.5,0.88630387]
[1763511353222,0.00483402,3103.4,3103.3,0.746]
[1763511353431,0.2476,3103.1,3103.0,3.73015]
[1763511353725,0.52231,3103.3,3103.2,0.52231]
[1763511353726,0.76991,3103.3,3103.2,0.52231]
[1763511354120,0.76995,3103.1,3103.0,0.52234]
[1763511354920,3.98054746,3103.3,3103.2,0.74601]
[1763511355126,0.76991,3103.2,3103.1,0.52233]
[1763511358135,0.1382,3103.0,3102.6,3.2078]
[1763511358429,0.3622,3103.0,3102.9,0.75476]
[1763511360927,0.1382,3103.0,3102.9,0.75476]
[1763511361532,0.3622,3103.0,3102.9,0.75476]
[1763511362333,3.21064746,3103.3,3103.2,0.75471]
[1763511362629,3.2078,3103.7,3103.6,0.75465]